[Event "Betsys MČR v online bleskovém šachu 2021"]
[Site "Chess.com"]
[Date "2021.04.17"]
[Round "13"]
[White "adambelaska"]
[Black "dzerenyss"]
[Result "1-0"]
[WhiteElo "1392"]
[BlackElo "1109"]
[TimeControl "180+1"]
[EndTime "11:09:33 PDT"]
[Termination "Uživatel adambelaska zvítězil matem"]

1. d4 {[%clk 0:02:57.2]} 1... d5 {[%clk 0:02:58.7]} 2. c4 {[%clk 0:02:53.6]}
2... c6 {[%clk 0:02:57.1]} 3. Nf3 {[%clk 0:02:51.6]} 3... e6 {[%clk 0:02:56.3]}
4. Nc3 {[%clk 0:02:49]} 4... Nf6 {[%clk 0:02:53.8]} 5. Bf4 {[%clk 0:02:46.2]}
5... Bb4 {[%clk 0:02:48.9]} 6. Rc1 {[%clk 0:02:40.9]} 6... O-O {[%clk
0:02:39.2]} 7. a3 {[%clk 0:02:37.9]} 7... Bxc3+ {[%clk 0:02:30]} 8. bxc3 {[%clk
0:02:32.9]} 8... Nbd7 {[%clk 0:02:23.7]} 9. cxd5 {[%clk 0:02:27.2]} 9... cxd5
{[%clk 0:02:19]} 10. c4 {[%clk 0:02:21]} 10... a6 {[%clk 0:02:04.6]} 11. e3
{[%clk 0:02:16.7]} 11... b5 {[%clk 0:02:00.3]} 12. cxd5 {[%clk 0:02:11.4]} 12...
exd5 {[%clk 0:01:43.9]} 13. Bc7 {[%clk 0:02:11.8]} 13... Qe7 {[%clk 0:01:38.2]}
14. Bf4 {[%clk 0:02:11.7]} 14... Bb7 {[%clk 0:01:34.8]} 15. Ne5 {[%clk 0:02:06]}
15... Nxe5 {[%clk 0:01:29.7]} 16. Bxe5 {[%clk 0:02:04.5]} 16... Ne4 {[%clk
0:01:22.9]} 17. Rc7 {[%clk 0:01:58.2]} 17... Qxa3 {[%clk 0:00:58.7]} 18. Rxb7
{[%clk 0:01:53]} 18... Qb4+ {[%clk 0:00:55.9]} 19. Ke2 {[%clk 0:01:45.9]} 19...
Nc3+ {[%clk 0:00:49.1]} 20. Ke1 {[%clk 0:01:41.3]} 20... Nxd1+ {[%clk
0:00:47.3]} 21. Kxd1 {[%clk 0:01:42.1]} 21... Rac8 {[%clk 0:00:44.6]} 22. Bd3
{[%clk 0:01:35.2]} 22... Rc3 {[%clk 0:00:42.3]} 23. Ke2 {[%clk 0:01:29.9]} 23...
Qb2+ {[%clk 0:00:41.2]} 24. Kf3 {[%clk 0:01:24.2]} 24... f5 {[%clk 0:00:40.2]}
25. Bd6 {[%clk 0:01:18.2]} 25... Rf7 {[%clk 0:00:30.9]} 26. Rb8+ {[%clk
0:01:13.8]} 26... Rf8 {[%clk 0:00:29.9]} 27. Rxf8# {[%clk 0:01:13]} 1-0

[Event "Betsys MČR v online bleskovém šachu 2021"]
[Site "Chess.com"]
[Date "2021.04.17"]
[Round "13"]
[White "feela1"]
[Black "tkokosek007"]
[Result "0-1"]
[WhiteElo "1275"]
[BlackElo "1372"]
[TimeControl "180+1"]
[EndTime "11:09:33 PDT"]
[Termination "Uživatel tkokosek007 zvítězil po vzdání soupeře"]

1. e4 {[%clk 0:03:00.9]} 1... Nf6 {[%clk 0:02:59.6]} 2. Nc3 {[%clk 0:02:54.3]}
2... d5 {[%clk 0:02:58.9]} 3. exd5 {[%clk 0:02:47.7]} 3... Nxd5 {[%clk
0:02:57.9]} 4. Nxd5 {[%clk 0:02:47.2]} 4... Qxd5 {[%clk 0:02:57.9]} 5. Qe2
{[%clk 0:02:46.5]} 5... Nc6 {[%clk 0:02:48.2]} 6. Nf3 {[%clk 0:02:42.8]} 6...
Bg4 {[%clk 0:02:47.4]} 7. h3 {[%clk 0:02:37.9]} 7... Bh5 {[%clk 0:02:44.9]} 8.
d3 {[%clk 0:02:27.4]} 8... Nd4 {[%clk 0:02:36.2]} 9. Qd2 {[%clk 0:02:20.2]} 9...
Nxf3+ {[%clk 0:02:30.4]} 10. gxf3 {[%clk 0:02:13.6]} 10... Bxf3 {[%clk 0:02:25]}
11. Rg1 {[%clk 0:02:13.3]} 11... O-O-O {[%clk 0:02:24.5]} 12. Rg3 {[%clk
0:02:06.5]} 12... Bh5 {[%clk 0:02:13.8]} 13. Bg2 {[%clk 0:02:05.4]} 13... Qd6
{[%clk 0:01:52.6]} 14. Qa5 {[%clk 0:01:57.8]} 14... Qb6 {[%clk 0:01:47.7]} 15.
Qxh5 {[%clk 0:01:54.2]} 15... g6 {[%clk 0:01:31.7]} 16. Qf3 {[%clk 0:01:52.1]}
16... e5 {[%clk 0:01:24.8]} 17. Qxf7 {[%clk 0:01:39.3]} 17... Bd6 {[%clk
0:01:21.4]} 18. Re3 {[%clk 0:01:35.9]} 18... Rdf8 {[%clk 0:01:12.2]} 19. Qe6+
{[%clk 0:01:35.3]} 19... Kb8 {[%clk 0:01:07.5]} 20. a3 {[%clk 0:01:27.7]} 20...
Bb4+ {[%clk 0:01:05.8]} 21. c3 {[%clk 0:01:12.2]} 21... Bxc3+ {[%clk 0:01:02.6]}
22. bxc3 {[%clk 0:01:10.1]} 22... Qxe6 {[%clk 0:01:01.8]} 23. Rb1 {[%clk
0:01:09]} 23... b6 {[%clk 0:00:58.2]} 24. d4 {[%clk 0:01:07.6]} 24... Qf5 {[%clk
0:00:45.9]} 25. Rf3 {[%clk 0:01:06.2]} 25... Qxb1 {[%clk 0:00:43.5]} 26. Rxf8+
{[%clk 0:01:01]} 26... Rxf8 {[%clk 0:00:42.7]} 27. Kd2 {[%clk 0:01:00.5]} 27...
exd4 {[%clk 0:00:38.6]} 0-1

[Event "Betsys MČR v online bleskovém šachu 2021"]
[Site "Chess.com"]
[Date "2021.04.17"]
[Round "13"]
[White "sharpi5135"]
[Black "Sorcercream"]
[Result "0-1"]
[WhiteElo "758"]
[BlackElo "1035"]
[TimeControl "180+1"]
[EndTime "11:09:40 PDT"]
[Termination "Uživatel Sorcercream zvítězil na čas"]

1. e4 {[%clk 0:03:00.9]} 1... e5 {[%clk 0:02:59.5]} 2. Nf3 {[%clk 0:02:59]} 2...
Nc6 {[%clk 0:02:59.4]} 3. Be2 {[%clk 0:02:57.5]} 3... Nf6 {[%clk 0:02:57.6]} 4.
O-O {[%clk 0:02:56.7]} 4... Nxe4 {[%clk 0:02:55.8]} 5. d3 {[%clk 0:02:50.2]}
5... Nf6 {[%clk 0:02:55.3]} 6. Bg5 {[%clk 0:02:47.8]} 6... Be7 {[%clk
0:02:54.8]} 7. Nc3 {[%clk 0:02:46]} 7... d5 {[%clk 0:02:52.7]} 8. d4 {[%clk
0:02:04]} 8... exd4 {[%clk 0:02:47.8]} 9. Nb5 {[%clk 0:02:02.7]} 9... O-O {[%clk
0:02:43.3]} 10. Nbxd4 {[%clk 0:01:59.7]} 10... Nxd4 {[%clk 0:02:42.2]} 11. Nxd4
{[%clk 0:01:58.4]} 11... c6 {[%clk 0:02:37.9]} 12. Nf3 {[%clk 0:01:46.9]} 12...
h6 {[%clk 0:02:33.8]} 13. Be3 {[%clk 0:01:29.7]} 13... Ne4 {[%clk 0:02:30.6]}
14. Bd3 {[%clk 0:01:19.6]} 14... Bf5 {[%clk 0:02:27.4]} 15. Nh4 {[%clk 0:01:01]}
15... Bh7 {[%clk 0:02:23.9]} 16. Nf3 {[%clk 0:00:54.8]} 16... f5 {[%clk
0:02:13.5]} 17. Ne5 {[%clk 0:00:53.6]} 17... f4 {[%clk 0:02:03.8]} 18. Bd2
{[%clk 0:00:42.4]} 18... Bd6 {[%clk 0:01:59.7]} 19. Ng4 {[%clk 0:00:35.5]} 19...
h5 {[%clk 0:01:49.1]} 20. Bxe4 {[%clk 0:00:30.4]} 20... dxe4 {[%clk 0:01:46]}
21. Nh6+ {[%clk 0:00:22.9]} 21... gxh6 {[%clk 0:01:42.2]} 22. Qxh5 {[%clk
0:00:20.9]} 22... Qg5 {[%clk 0:01:38.4]} 23. Qxg5+ {[%clk 0:00:16.5]} 23... hxg5
{[%clk 0:01:37.7]} 24. g3 {[%clk 0:00:14.2]} 24... fxg3 {[%clk 0:01:34.8]} 25.
hxg3 {[%clk 0:00:12]} 25... g4 {[%clk 0:01:31.7]} 26. Bf4 {[%clk 0:00:09.2]}
26... Bxf4 {[%clk 0:01:30.6]} 27. gxf4 {[%clk 0:00:07.8]} 27... Rxf4 {[%clk
0:01:31.5]} 28. Kg2 {[%clk 0:00:05.3]} 28... Raf8 {[%clk 0:01:30.3]} 0-1

[Event "Betsys MČR v online bleskovém šachu 2021"]
[Site "Chess.com"]
[Date "2021.04.17"]
[Round "13"]
[White "Trickov"]
[Black "masterofbuzkashi"]
[Result "1-0"]
[WhiteElo "2407"]
[BlackElo "2237"]
[TimeControl "180+1"]
[EndTime "11:09:45 PDT"]
[Termination "Uživatel Trickov zvítězil matem"]

1. d4 {[%clk 0:02:58]} 1... c5 {[%clk 0:03:00.1]} 2. d5 {[%clk 0:02:49.5]} 2...
d6 {[%clk 0:03:00.2]} 3. e4 {[%clk 0:02:44]} 3... g6 {[%clk 0:03:00.4]} 4. c4
{[%clk 0:02:39.3]} 4... Bg7 {[%clk 0:03:00.6]} 5. Bd3 {[%clk 0:02:34.6]} 5...
Nd7 {[%clk 0:03:00.7]} 6. Nf3 {[%clk 0:02:29.2]} 6... Ngf6 {[%clk 0:03:00.7]} 7.
Nc3 {[%clk 0:02:26.3]} 7... O-O {[%clk 0:03:01]} 8. h3 {[%clk 0:02:22.5]} 8...
Ne5 {[%clk 0:03:01]} 9. Nxe5 {[%clk 0:02:15.2]} 9... dxe5 {[%clk 0:03:01.9]} 10.
Be3 {[%clk 0:02:09.7]} 10... b6 {[%clk 0:03:02]} 11. a3 {[%clk 0:02:04.2]} 11...
Ne8 {[%clk 0:03:02.3]} 12. b4 {[%clk 0:01:57.6]} 12... cxb4 {[%clk 0:03:02.1]}
13. axb4 {[%clk 0:01:47.7]} 13... f5 {[%clk 0:03:02.1]} 14. c5 {[%clk
0:01:38.5]} 14... f4 {[%clk 0:03:00.3]} 15. Bd2 {[%clk 0:01:34.5]} 15... Nf6
{[%clk 0:02:46.2]} 16. Bc4 {[%clk 0:01:30.2]} 16... Kh8 {[%clk 0:02:45.3]} 17.
O-O {[%clk 0:01:26.1]} 17... f3 {[%clk 0:02:40.4]} 18. Qxf3 {[%clk 0:01:20.1]}
18... Nxd5 {[%clk 0:02:39.1]} 19. Qe2 {[%clk 0:01:09.9]} 19... Nf4 {[%clk
0:02:31.8]} 20. Bxf4 {[%clk 0:01:07.6]} 20... exf4 {[%clk 0:02:30.6]} 21. Rfd1
{[%clk 0:01:04.6]} 21... Qc7 {[%clk 0:02:23.3]} 22. Nd5 {[%clk 0:01:00]} 22...
Qb7 {[%clk 0:02:13.3]} 23. cxb6 {[%clk 0:00:58.7]} 23... Bxa1 {[%clk 0:02:02.5]}
24. Rxa1 {[%clk 0:00:51.2]} 24... axb6 {[%clk 0:02:02.6]} 25. Qb2+ {[%clk
0:00:45.3]} 25... Rf6 {[%clk 0:01:49.6]} 26. Nxf6 {[%clk 0:00:39.1]} 26... Rxa1+
{[%clk 0:01:47.2]} 27. Qxa1 {[%clk 0:00:37.9]} 27... Kg7 {[%clk 0:01:27.2]} 28.
Nh5+ {[%clk 0:00:32]} 28... Kh6 {[%clk 0:01:26.8]} 29. Qg7+ {[%clk 0:00:23.8]}
29... Kxh5 {[%clk 0:01:25.4]} 30. Qxh7+ {[%clk 0:00:19.4]} 30... Kg5 {[%clk
0:01:24.1]} 31. h4+ {[%clk 0:00:17.2]} 31... Kf6 {[%clk 0:01:16.8]} 32. Qh8#
{[%clk 0:00:16.5]} 1-0

[Event "Betsys MČR v online bleskovém šachu 2021"]
[Site "Chess.com"]
[Date "2021.04.17"]
[Round "13"]
[White "Ehlundi"]
[Black "viklan"]
[Result "1-0"]
[WhiteElo "1760"]
[BlackElo "1585"]
[TimeControl "180+1"]
[EndTime "11:09:45 PDT"]
[Termination "Uživatel Ehlundi zvítězil matem"]

1. e4 {[%clk 0:03:00.9]} 1... c5 {[%clk 0:02:59.2]} 2. Nf3 {[%clk 0:03:01.1]}
2... d6 {[%clk 0:02:59.6]} 3. d4 {[%clk 0:03:00.8]} 3... cxd4 {[%clk 0:03:00.2]}
4. Nxd4 {[%clk 0:03:01]} 4... Nf6 {[%clk 0:03:00.8]} 5. Nc3 {[%clk 0:03:00.6]}
5... a6 {[%clk 0:03:01.2]} 6. Bd3 {[%clk 0:03:00.6]} 6... e6 {[%clk 0:03:00.5]}
7. O-O {[%clk 0:03:00.4]} 7... Nbd7 {[%clk 0:03:00.5]} 8. Bg5 {[%clk 0:02:59.9]}
8... Qc7 {[%clk 0:03:00.4]} 9. Kh1 {[%clk 0:02:57.6]} 9... b5 {[%clk 0:03:00.4]}
10. a3 {[%clk 0:02:57.2]} 10... Bb7 {[%clk 0:02:59.8]} 11. f3 {[%clk 0:02:54.3]}
11... d5 {[%clk 0:02:58.2]} 12. exd5 {[%clk 0:02:52.2]} 12... Nxd5 {[%clk
0:02:57.7]} 13. Nxd5 {[%clk 0:02:50]} 13... Bxd5 {[%clk 0:02:57]} 14. c3 {[%clk
0:02:49.4]} 14... Bd6 {[%clk 0:02:51.1]} 15. g3 {[%clk 0:02:31.7]} 15... O-O
{[%clk 0:02:45.5]} 16. Qc2 {[%clk 0:02:28.3]} 16... h6 {[%clk 0:02:43]} 17. Be3
{[%clk 0:02:18.3]} 17... Ne5 {[%clk 0:02:41]} 18. Be2 {[%clk 0:02:11.8]} 18...
Nc4 {[%clk 0:02:35.3]} 19. Bxc4 {[%clk 0:02:04.4]} 19... bxc4 {[%clk 0:02:33]}
20. Kg2 {[%clk 0:01:54.4]} 20... Rab8 {[%clk 0:02:31.3]} 21. Ne2 {[%clk
0:01:46.3]} 21... Qc6 {[%clk 0:02:25.4]} 22. Nd4 {[%clk 0:01:45]} 22... Qb7
{[%clk 0:02:23.9]} 23. Rab1 {[%clk 0:01:43.6]} 23... Bc5 {[%clk 0:02:18.4]} 24.
Qd2 {[%clk 0:01:37]} 24... Bxd4 {[%clk 0:02:15.2]} 25. Bxd4 {[%clk 0:01:36.5]}
25... Rbd8 {[%clk 0:02:05]} 26. Qe3 {[%clk 0:01:36.3]} 26... Qe7 {[%clk
0:01:59.5]} 27. Rbe1 {[%clk 0:01:33]} 27... Qg5 {[%clk 0:01:58.9]} 28. Qe2
{[%clk 0:01:13.5]} 28... Rb8 {[%clk 0:01:56.8]} 29. h4 {[%clk 0:01:12.6]} 29...
Qg6 {[%clk 0:01:53.7]} 30. Rf2 {[%clk 0:01:06.8]} 30... Rb7 {[%clk 0:01:53]} 31.
Kh3 {[%clk 0:00:59.2]} 31... Rfb8 {[%clk 0:01:50.6]} 32. Qe5 {[%clk 0:00:54.4]}
32... Rxb2 {[%clk 0:01:43.4]} 33. Rxb2 {[%clk 0:00:52.7]} 33... Rxb2 {[%clk
0:01:42.8]} 34. Qd6 {[%clk 0:00:48.6]} 34... Qc2 {[%clk 0:01:37.8]} 35. Qe5
{[%clk 0:00:40.5]} 35... Qg2+ {[%clk 0:01:35.6]} 36. Kg4 {[%clk 0:00:40.8]}
36... Bxf3+ {[%clk 0:01:33.5]} 37. Kf4 {[%clk 0:00:38.7]} 37... f6 {[%clk
0:01:23.6]} 38. Qxe6+ {[%clk 0:00:37.5]} 38... Kh8 {[%clk 0:01:23.6]} 39. Qc8+
{[%clk 0:00:33]} 39... Kh7 {[%clk 0:01:22.2]} 40. Qf5+ {[%clk 0:00:32.9]} 40...
Kh8 {[%clk 0:01:22.3]} 41. Re8# {[%clk 0:00:32.1]} 1-0

[Event "Betsys MČR v online bleskovém šachu 2021"]
[Site "Chess.com"]
[Date "2021.04.17"]
[Round "13"]
[White "MartinHollan"]
[Black "Paulz64"]
[Result "1-0"]
[WhiteElo "2622"]
[BlackElo "2480"]
[TimeControl "180+1"]
[EndTime "11:09:50 PDT"]
[Termination "Uživatel MartinHollan zvítězil po vzdání soupeře"]

1. e4 {[%clk 0:03:00.9]} 1... c5 {[%clk 0:02:59.3]} 2. Nf3 {[%clk 0:03:01]} 2...
e6 {[%clk 0:02:59.5]} 3. Nc3 {[%clk 0:02:59.9]} 3... a6 {[%clk 0:02:59.2]} 4. g3
{[%clk 0:02:58.4]} 4... Nc6 {[%clk 0:02:54.5]} 5. Bg2 {[%clk 0:02:58.1]} 5... g6
{[%clk 0:02:50.6]} 6. d4 {[%clk 0:02:57.7]} 6... cxd4 {[%clk 0:02:50.5]} 7. Nxd4
{[%clk 0:02:57.5]} 7... Bg7 {[%clk 0:02:49.7]} 8. Be3 {[%clk 0:02:57.7]} 8...
Ne5 {[%clk 0:02:21.5]} 9. O-O {[%clk 0:02:54.3]} 9... Nf6 {[%clk 0:02:00.4]} 10.
h3 {[%clk 0:02:53.5]} 10... O-O {[%clk 0:01:46.5]} 11. f4 {[%clk 0:02:47]} 11...
Nc4 {[%clk 0:01:45.8]} 12. Bc1 {[%clk 0:02:47.1]} 12... d6 {[%clk 0:01:45.4]}
13. b3 {[%clk 0:02:45.1]} 13... Nb6 {[%clk 0:01:21.5]} 14. Ba3 {[%clk
0:02:43.2]} 14... Qc7 {[%clk 0:01:16.6]} 15. Nce2 {[%clk 0:02:42]} 15... Rd8
{[%clk 0:01:08.7]} 16. c4 {[%clk 0:02:40.7]} 16... Nbd7 {[%clk 0:00:40]} 17. Rc1
{[%clk 0:02:25.6]} 17... Nc5 {[%clk 0:00:36.8]} 18. Nc3 {[%clk 0:02:18.6]} 18...
Rb8 {[%clk 0:00:28]} 19. Bb2 {[%clk 0:02:11.4]} 19... b6 {[%clk 0:00:19.9]} 20.
b4 {[%clk 0:02:00.3]} 20... Ncd7 {[%clk 0:00:17.7]} 21. Nd5 {[%clk 0:02:00.5]}
21... exd5 {[%clk 0:00:15.6]} 22. cxd5 {[%clk 0:02:00.7]} 22... Qb7 {[%clk
0:00:15.8]} 23. Nc6 {[%clk 0:02:01]} 23... Re8 {[%clk 0:00:16]} 24. e5 {[%clk
0:01:53.6]} 24... Nh5 {[%clk 0:00:12]} 25. Qf3 {[%clk 0:01:29.4]} 25... b5
{[%clk 0:00:11.7]} 26. Nxb8 {[%clk 0:01:27.1]} 26... Qxb8 {[%clk 0:00:11.4]} 27.
g4 {[%clk 0:01:27.5]} 27... Qb6+ {[%clk 0:00:06.8]} 28. Kh1 {[%clk 0:01:26.1]}
28... Nxf4 {[%clk 0:00:04.7]} 29. Qxf4 {[%clk 0:01:26.1]} 29... Nxe5 {[%clk
0:00:02.7]} 30. Bxe5 {[%clk 0:01:25.1]} 1-0

[Event "Betsys MČR v online bleskovém šachu 2021"]
[Site "Chess.com"]
[Date "2021.04.17"]
[Round "13"]
[White "Nevimjakhrat"]
[Black "DONSANMIGUEL"]
[Result "1-0"]
[WhiteElo "1485"]
[BlackElo "1758"]
[TimeControl "180+1"]
[EndTime "11:09:50 PDT"]
[Termination "Uživatel Nevimjakhrat zvítězil na čas"]

1. c4 {[%clk 0:03:00.9]} 1... a6 {[%clk 0:03:00.9]} 2. Nc3 {[%clk 0:03:01.8]}
2... c5 {[%clk 0:02:59.6]} 3. g3 {[%clk 0:03:01.9]} 3... Nc6 {[%clk 0:02:59.7]}
4. Bg2 {[%clk 0:03:02.2]} 4... e6 {[%clk 0:03:00.6]} 5. e4 {[%clk 0:03:02]} 5...
Be7 {[%clk 0:03:01.5]} 6. Nge2 {[%clk 0:03:01.6]} 6... d6 {[%clk 0:03:02.4]} 7.
O-O {[%clk 0:03:01.6]} 7... h5 {[%clk 0:03:00.8]} 8. d3 {[%clk 0:02:58]} 8... h4
{[%clk 0:02:59.3]} 9. h3 {[%clk 0:02:56]} 9... Nd4 {[%clk 0:02:57.4]} 10. Nxd4
{[%clk 0:02:54.4]} 10... cxd4 {[%clk 0:02:57.3]} 11. Ne2 {[%clk 0:02:54.9]}
11... e5 {[%clk 0:02:52]} 12. f4 {[%clk 0:02:54.7]} 12... hxg3 {[%clk
0:02:50.3]} 13. Nxg3 {[%clk 0:02:55]} 13... Bxh3 {[%clk 0:02:49.4]} 14. Bxh3
{[%clk 0:02:49.8]} 14... Rxh3 {[%clk 0:02:49.2]} 15. Nf5 {[%clk 0:02:50.5]}
15... Bf8 {[%clk 0:02:42.6]} 16. Qa4+ {[%clk 0:02:47.3]} 16... Qd7 {[%clk
0:02:12.9]} 17. Qxd7+ {[%clk 0:02:38.3]} 17... Kxd7 {[%clk 0:02:13]} 18. fxe5
{[%clk 0:02:39.1]} 18... g6 {[%clk 0:02:08.4]} 19. Nxd4 {[%clk 0:02:33.3]} 19...
dxe5 {[%clk 0:01:46.5]} 20. Nf3 {[%clk 0:02:27.4]} 20... f6 {[%clk 0:01:31.9]}
21. Kg2 {[%clk 0:02:25.1]} 21... Rh7 {[%clk 0:01:28.2]} 22. Be3 {[%clk
0:02:20.6]} 22... Ne7 {[%clk 0:01:13]} 23. Rad1 {[%clk 0:02:17.4]} 23... f5
{[%clk 0:01:02.4]} 24. d4 {[%clk 0:02:11.2]} 24... fxe4 {[%clk 0:00:44.6]} 25.
dxe5+ {[%clk 0:02:10.3]} 25... Kc6 {[%clk 0:00:44.7]} 26. Ng5 {[%clk 0:02:09.9]}
26... Rh4 {[%clk 0:00:32.2]} 27. Rd6+ {[%clk 0:01:57.4]} 27... Kc7 {[%clk
0:00:30]} 28. Ne6+ {[%clk 0:01:47.2]} 28... Kb8 {[%clk 0:00:22.4]} 29. Rd8+
{[%clk 0:01:35.2]} 29... Nc8 {[%clk 0:00:12.7]} 30. Rdxf8 {[%clk 0:01:34.7]}
30... b6 {[%clk 0:00:09.7]} 31. R1f7 {[%clk 0:01:29.7]} 31... Rg4+ {[%clk
0:00:09.4]} 32. Kh3 {[%clk 0:01:28.9]} 1-0

[Event "Betsys MČR v online bleskovém šachu 2021"]
[Site "Chess.com"]
[Date "2021.04.17"]
[Round "13"]
[White "DiscoSTU666"]
[Black "tryskomys"]
[Result "0-1"]
[WhiteElo "1857"]
[BlackElo "1650"]
[TimeControl "180+1"]
[EndTime "11:09:51 PDT"]
[Termination "Uživatel tryskomys zvítězil po vzdání soupeře"]

1. e4 {[%clk 0:03:00.9]} 1... e5 {[%clk 0:02:59]} 2. Nf3 {[%clk 0:03:00]} 2...
Nc6 {[%clk 0:02:58.7]} 3. Bc4 {[%clk 0:02:59.6]} 3... Bc5 {[%clk 0:02:57.4]} 4.
O-O {[%clk 0:02:58.4]} 4... Nf6 {[%clk 0:02:57.1]} 5. d4 {[%clk 0:02:57.8]} 5...
exd4 {[%clk 0:02:56.6]} 6. e5 {[%clk 0:02:56.8]} 6... d5 {[%clk 0:02:56.4]} 7.
Bb5 {[%clk 0:02:56.1]} 7... Ne4 {[%clk 0:02:54.9]} 8. Nxd4 {[%clk 0:02:52.5]}
8... Bd7 {[%clk 0:02:54.7]} 9. Bxc6 {[%clk 0:02:51.1]} 9... bxc6 {[%clk
0:02:54.2]} 10. Kh1 {[%clk 0:02:34.5]} 10... O-O {[%clk 0:02:48.3]} 11. f3
{[%clk 0:02:33.1]} 11... Ng5 {[%clk 0:02:47.8]} 12. f4 {[%clk 0:02:33]} 12...
Ne4 {[%clk 0:02:47.8]} 13. Nb3 {[%clk 0:02:09.7]} 13... Nf2+ {[%clk 0:02:38.1]}
14. Rxf2 {[%clk 0:02:08.4]} 14... Bxf2 {[%clk 0:02:38]} 15. Qf3 {[%clk
0:02:08.3]} 15... Bb6 {[%clk 0:02:36.5]} 16. Nc3 {[%clk 0:02:07.3]} 16... Bf5
{[%clk 0:02:33]} 17. g4 {[%clk 0:02:00.5]} 17... Be4 {[%clk 0:02:32.5]} 18. Nxe4
{[%clk 0:01:57.8]} 18... dxe4 {[%clk 0:02:32.5]} 19. Qxe4 {[%clk 0:01:57.7]}
19... Qd1+ {[%clk 0:02:31]} 20. Kg2 {[%clk 0:01:58.1]} 20... Qg1+ {[%clk
0:02:29]} 21. Kh3 {[%clk 0:01:51.7]} 21... Qf1+ {[%clk 0:02:17.2]} 22. Qg2
{[%clk 0:01:50.6]} 22... Qc4 {[%clk 0:02:11.4]} 23. Bd2 {[%clk 0:01:39.9]} 23...
a5 {[%clk 0:02:09.3]} 24. Rf1 {[%clk 0:01:01.5]} 24... a4 {[%clk 0:02:07.2]} 25.
Nc1 {[%clk 0:01:00.6]} 25... Qxc2 {[%clk 0:02:04]} 26. f5 {[%clk 0:01:00.5]}
26... a3 {[%clk 0:01:57.2]} 27. b3 {[%clk 0:00:57.1]} 27... Rad8 {[%clk
0:01:48.8]} 28. Bg5 {[%clk 0:00:46.3]} 28... Qc3+ {[%clk 0:01:37.9]} 29. Qg3
{[%clk 0:00:43.6]} 29... Qxg3+ {[%clk 0:01:30.7]} 30. Kxg3 {[%clk 0:00:41.6]}
30... Rd5 {[%clk 0:01:28.2]} 31. e6 {[%clk 0:00:36.8]} 31... f6 {[%clk 0:01:27]}
32. Bf4 {[%clk 0:00:35.2]} 32... Bc5 {[%clk 0:01:24.2]} 33. Re1 {[%clk
0:00:32.2]} 33... Bd6 {[%clk 0:01:23]} 34. Ne2 {[%clk 0:00:26.7]} 34... Re8
{[%clk 0:01:19.7]} 35. Nc3 {[%clk 0:00:24.9]} 35... Rd3+ {[%clk 0:01:18.1]} 36.
Re3 {[%clk 0:00:23.3]} 36... Rxe3+ {[%clk 0:01:17.2]} 0-1

[Event "Betsys MČR v online bleskovém šachu 2021"]
[Site "Chess.com"]
[Date "2021.04.17"]
[Round "13"]
[White "TheRigos"]
[Black "MartinCerveny"]
[Result "1-0"]
[WhiteElo "2578"]
[BlackElo "2654"]
[TimeControl "180+1"]
[EndTime "11:09:54 PDT"]
[Termination "Uživatel TheRigos zvítězil po vzdání soupeře"]

1. e4 {[%clk 0:03:00.9]} 1... c5 {[%clk 0:02:59.4]} 2. Nf3 {[%clk 0:03:01.2]}
2... d6 {[%clk 0:02:59.6]} 3. d4 {[%clk 0:03:01.8]} 3... cxd4 {[%clk 0:02:59.9]}
4. Qxd4 {[%clk 0:03:02.7]} 4... Nc6 {[%clk 0:02:59.3]} 5. Bb5 {[%clk 0:03:03.3]}
5... Bd7 {[%clk 0:02:59.5]} 6. Bxc6 {[%clk 0:03:03.9]} 6... Bxc6 {[%clk
0:02:59.7]} 7. Nc3 {[%clk 0:03:04.8]} 7... Nf6 {[%clk 0:02:59.3]} 8. Bg5 {[%clk
0:03:05.4]} 8... h6 {[%clk 0:02:49.5]} 9. Bh4 {[%clk 0:03:03.8]} 9... e5 {[%clk
0:02:47.3]} 10. Qd3 {[%clk 0:03:03.7]} 10... Be7 {[%clk 0:02:47.2]} 11. O-O-O
{[%clk 0:02:59.5]} 11... g5 {[%clk 0:02:40.6]} 12. Bg3 {[%clk 0:02:58]} 12...
Qa5 {[%clk 0:02:39]} 13. Nd2 {[%clk 0:02:56.6]} 13... b5 {[%clk 0:02:34.1]} 14.
h4 {[%clk 0:02:33.1]} 14... g4 {[%clk 0:02:15.7]} 15. h5 {[%clk 0:02:32.9]}
15... Rc8 {[%clk 0:02:12.1]} 16. Bh4 {[%clk 0:02:31.1]} 16... b4 {[%clk
0:02:06.1]} 17. Nc4 {[%clk 0:02:28.5]} 17... Qc5 {[%clk 0:01:55.8]} 18. Bxf6
{[%clk 0:02:22.5]} 18... Bxf6 {[%clk 0:01:29.4]} 19. Nxd6+ {[%clk 0:02:21.4]}
19... Ke7 {[%clk 0:01:25.6]} 20. Nxc8+ {[%clk 0:02:07.6]} 20... Rxc8 {[%clk
0:01:26.5]} 21. Nd5+ {[%clk 0:02:05.2]} 21... Bxd5 {[%clk 0:01:26.4]} 22. exd5
{[%clk 0:02:05.7]} 22... Kf8 {[%clk 0:01:03]} 23. Kb1 {[%clk 0:01:52.9]} 23...
a5 {[%clk 0:01:01.1]} 24. d6 {[%clk 0:01:47]} 24... a4 {[%clk 0:00:58.7]} 25. d7
{[%clk 0:01:46.9]} 25... Rd8 {[%clk 0:00:58.1]} 26. Qf5 {[%clk 0:01:46.5]} 26...
Ke7 {[%clk 0:00:51.6]} 27. Qe4 {[%clk 0:01:39.1]} 27... a3 {[%clk 0:00:48.6]}
28. Rd5 {[%clk 0:01:37.6]} 28... Qxf2 {[%clk 0:00:34.9]} 29. Qxb4+ {[%clk
0:01:35.3]} 29... Ke6 {[%clk 0:00:28.9]} 30. Qc4 {[%clk 0:01:29.4]} 30... Ke7
{[%clk 0:00:16]} 31. Qb4+ {[%clk 0:01:29.7]} 31... Ke6 {[%clk 0:00:15.8]} 32.
Rd6+ {[%clk 0:01:21.8]} 32... Kf5 {[%clk 0:00:15.8]} 33. Qc4 {[%clk 0:01:22.7]}
33... Kg5 {[%clk 0:00:14.6]} 34. Qxf7 {[%clk 0:01:20]} 34... Rb8 {[%clk
0:00:14]} 35. Qg6+ {[%clk 0:01:20]} 1-0